fUSD/lending_fUSD_20241105
["ID","MTS","AMOUNT","RATE_DAILY","PERIOD"]
[341314328,1730765443159,-500.0,0.00030136,2]
[341314329,1730765443168,-500.0,0.00030136,2]
[341314331,1730765443178,-578.02572325,0.00030136,2]
[341314333,1730765443188,-500.0,0.00030136,2]
[341314335,1730765443200,-500.0,0.00030136,2]
[341314336,1730765443209,-500.0,0.00030136,2]
[341314337,1730765443218,-500.0,0.00030136,2]
[341314339,1730765443226,-521.35,0.00030136,2]
[341314340,1730765443237,-500.0,0.00030136,2]
[341314341,1730765443246,-500.0,0.00030136,2]
[341314342,1730765443255,-575.06040679,0.00030136,2]
[341314343,1730765443265,-515.96,0.00030136,2]
[341314344,1730765443274,-500.0,0.00030136,2]
[341314345,1730765443283,-500.0,0.00030136,2]
[341314346,1730765443292,-155.52,0.00030136,2]
[341314347,1730765443300,-500.0,0.00030136,2]
[341314348,1730765443310,-500.0,0.00030136,2]
[341314349,1730765443319,-642.18,0.00030136,2]
[341314350,1730765443329,-587.44942153,0.00030136,2]
[341314353,1730765443338,-206.44031298,0.00030136,2]
[341314355,1730765443347,-500.0,0.00030136,2]
[341314356,1730765443355,-500.0,0.00030136,2]
[341314358,1730765443364,-500.0,0.00030136,2]
[341314360,1730765443373,-500.0,0.00030136,2]
[341314362,1730765443382,-355.56727614,0.00030136,2]
[341314364,1730765443391,-500.0,0.00030136,2]
[341314366,1730765443400,-535.95359728,0.00030136,2]
[341314368,1730765443409,-385.57,0.00030136,2]
[341314370,1730765443419,-500.0,0.00030136,2]
[341314371,1730765443428,-500.0,0.00030136,2]
[341314372,1730765443437,-500.0,0.00030136,2]
[341314373,1730765443448,-500.0,0.00030136,2]
[341314374,1730765443457,-404.01382298,0.00030136,2]
[341314376,1730765443466,-500.0,0.00030136,2]
[341314377,1730765443475,-287.66464,0.00030136,7]
[341314378,1730765443484,-546.63066563,0.00030136,2]
[341314379,1730765443493,-568.06732511,0.00030136,2]
[341314380,1730765443503,-500.0,0.00030136,2]
[341314381,1730765443512,-500.0,0.00030136,2]
[341314382,1730765443521,-559.23577244,0.00030136,2]
[341314383,1730765443531,-500.0,0.00030136,2]
[341314384,1730765443540,-500.0,0.00030136,2]
[341314385,1730765443550,-358.85621201,0.00030136,2]
[341314386,1730765443560,-500.0,0.00030136,2]
[341314387,1730765443569,-500.0,0.00030136,2]
[341314388,1730765443578,-379.54,0.00030136,2]
[341314389,1730765443587,-500.0,0.00030136,2]
[341314390,1730765443596,-500.0,0.00030136,2]
[341314391,1730765443605,-592.09036748,0.00030136,2]
[341314392,1730765443614,-500.0,0.00030136,2]
[341314393,1730765443624,-500.0,0.00030136,2]
[341314394,1730765443633,-500.0,0.00030136,2]
[341314395,1730765443644,-500.0,0.00030136,2]
[341314396,1730765443653,-500.0,0.00030136,2]
[341314397,1730765443663,-500.0,0.00030136,2]
[341314398,1730765443672,-500.0,0.00030136,2]
[341314399,1730765443681,-500.0,0.00030136,2]
[341314400,1730765443692,-500.0,0.00030136,2]
[341314401,1730765443702,-500.0,0.00030136,2]
[341314402,1730765443711,-500.0,0.00030136,2]
[341314403,1730765443721,-500.0,0.00030136,2]
[341314404,1730765443730,-500.0,0.00030136,2]
[341314405,1730765443739,-500.0,0.00030136,2]
[341314406,1730765443748,-500.0,0.00030136,2]
[341314407,1730765443759,-419.6167478,0.00030136,2]
[341314408,1730765443768,-500.0,0.00030136,2]
[341314409,1730765443777,-151.0,0.00030136,7]
[341314410,1730765443788,-500.0,0.00030136,2]
[341314411,1730765443797,-500.0,0.00030136,2]
[341314412,1730765443806,-500.0,0.00030136,2]
[341314413,1730765443816,-151.0,0.00030136,7]
[341314414,1730765443825,-500.0,0.00030136,2]
[341314415,1730765443835,-151.0,0.00030136,7]
[341314416,1730765443844,-279.38817324,0.00030136,2]
[341314417,1730765443853,-151.0,0.00030136,7]
[341314418,1730765443863,-500.0,0.00030136,2]
[341314419,1730765443872,-151.0,0.00030136,7]
[341314420,1730765443880,-500.0,0.00030136,2]
[341314421,1730765443890,-151.0,0.00030136,7]
[341314422,1730765443899,-500.0,0.00030136,2]
[341314423,1730765443909,-500.0,0.00030136,2]
[341314424,1730765443918,-151.0,0.00030136,7]
[341314425,1730765443928,-500.0,0.00030136,2]
[341314426,1730765443938,-151.0,0.00030136,7]
[341314427,1730765443949,-151.0,0.00030136,7]
[341314428,1730765443958,-500.0,0.00030136,2]
[341314429,1730765443968,-151.0,0.00030136,7]
[341314430,1730765443977,-151.0,0.00030136,7]
[341314431,1730765443986,-500.0,0.00030136,2]
[341314432,1730765443995,-244.969492,0.00030136,7]
[341314433,1730765444004,-500.0,0.00030136,2]
[341314434,1730765444012,-500.0,0.00030136,2]
[341314435,1730765444022,-500.0,0.00030136,2]
[341314436,1730765444031,-500.0,0.00030136,2]
[341314437,1730765444041,-500.0,0.00030136,2]
[341314438,1730765444051,-500.0,0.00030136,2]
[341314439,1730765444061,-500.0,0.00030136,2]
[341314440,1730765444070,-500.0,0.00030136,2]
[341314441,1730765444080,-500.0,0.00030136,2]
[341314442,1730765444089,-500.0,0.00030136,2]
[341314443,1730765444099,-562.06422479,0.00030136,2]
[341314444,1730765444109,-500.0,0.00030136,2]
[341314445,1730765444120,-500.0,0.00030136,2]
[341314446,1730765444130,-522.08,0.00030136,2]
[341314447,1730765444141,-500.0,0.00030136,2]
[341314448,1730765444152,-500.0,0.00030136,2]
[341314449,1730765444165,-499.33,0.00030136,2]
[341314450,1730765444174,-500.0,0.00030136,2]
[341314451,1730765444184,-500.0,0.00030136,2]
[341314452,1730765444198,-500.0,0.00030136,2]
[341314453,1730765444210,-500.0,0.00030136,2]
[341314454,1730765444219,-362.83,0.00030136,2]
[341314455,1730765444230,-500.0,0.00030136,2]
[341314456,1730765444240,-500.0,0.00030136,2]
[341314457,1730765444250,-500.0,0.00030136,2]
[341314458,1730765444260,-500.0,0.00030136,2]
[341314459,1730765444269,-500.0,0.00030136,2]
[341314460,1730765444279,-500.0,0.00030136,2]
[341314461,1730765444288,-500.0,0.00030136,2]
[341314462,1730765444298,-500.0,0.00030136,2]
[341314463,1730765444307,-500.0,0.00030136,2]
[341314464,1730765444317,-500.0,0.00030136,2]
[341314465,1730765444327,-323.81,0.00030136,2]
[341314466,1730765444338,-500.0,0.00030136,2]
[341314467,1730765444348,-500.0,0.00030136,2]
[341314468,1730765444359,-500.0,0.00030136,2]
[341314469,1730765444369,-500.0,0.00030136,2]
[341314470,1730765444378,-500.0,0.00030136,2]
[341314471,1730765444388,-500.0,0.00030136,2]
[341314472,1730765444397,-642.70079304,0.00030136,2]
[341314473,1730765444407,-500.0,0.00030136,2]
[341314474,1730765444416,-263.10225491,0.00030136,2]
[341314475,1730765444426,-500.0,0.00030136,2]
[341314476,1730765444435,-438.36644853,0.00030136,2]
[341314477,1730765444447,-1068.7,0.00030136,7]
[341314478,1730765444459,-1068.7,0.00030136,7]
[341314479,1730765444468,-1068.7,0.00030136,7]
[341314480,1730765444478,-500.0,0.00030136,2]
[341314481,1730765444488,-500.0,0.00030136,2]
[341314482,1730765444498,-500.0,0.00030136,2]
[341314483,1730765444508,-1068.7,0.00030136,7]
[341314484,1730765444517,-500.0,0.00030136,2]
[341314485,1730765444528,-490.77889952,0.00030136,2]
[341314486,1730765444537,-1068.7,0.00030136,7]
[341314487,1730765444548,-1068.7,0.00030136,7]
[341314488,1730765444557,-1068.7,0.00030136,7]
[341314489,1730765444567,-1068.7,0.00030136,7]
[341314490,1730765444577,-500.0,0.00030136,2]
[341314491,1730765444586,-1068.7,0.00030136,7]
[341314492,1730765444596,-1068.7,0.00030136,7]
[341314493,1730765444605,-1068.7,0.00030136,7]
[341314494,1730765444614,-1068.7,0.00030136,7]
[341314495,1730765444623,-1068.7,0.00030136,7]
[341314496,1730765444632,-610.5049104,0.00030136,7]
[341314497,1730765444702,-458.1950896,0.00030136,7]
[341314498,1730765444711,-1068.7,0.00030136,7]
[341314499,1730765444720,-1068.7,0.00030136,7]
[341314500,1730765444730,-484.78111832,0.00030136,2]
[341314501,1730765444739,-1068.7,0.00030136,7]
[341314502,1730765444749,-500.0,0.00030136,2]
[341314503,1730765444759,-1068.7,0.00030136,7]
[341314504,1730765444769,-500.0,0.00030136,2]
[341314505,1730765444778,-917.51840655,0.00030136,7]
[341314506,1730765444822,-151.18159345,0.00030136,7]
[341314507,1730765444832,-168.27,0.00030136,2]
[341314508,1730765444842,-180.54840655,0.00030136,7]
[341314509,1730765444858,-888.15159345,0.00030136,7]
[341314510,1730765444868,-1068.7,0.00030136,7]
[341314511,1730765444878,-500.0,0.00030136,2]
[341314512,1730765444887,-1068.7,0.00030136,7]
[341314513,1730765444898,-215.62648656,0.00030136,2]
[341314514,1730765444910,-401.41351344,0.00030136,2]
[341314515,1730765444919,-1068.7,0.00030136,7]
[341314516,1730765444928,-679.35773879,0.00030136,7]
[341314517,1730765444943,-389.51191543,0.00030136,7]
[341314518,1730765444954,-126.64663363,0.00030136,2]
[341314528,1730765445849,-463.35336637,0.00030136,2]
[341314529,1730765445860,-590.0,0.00030136,2]
[341314530,1730765445870,-590.0,0.00030136,2]
[341314531,1730765445880,-578.36,0.00030136,2]
[341314532,1730765445890,-590.0,0.00030136,2]
[341314533,1730765445900,-578.36,0.00030136,2]
[341314534,1730765445909,-590.0,0.00030136,2]
[341314535,1730765445919,-578.36,0.00030136,2]
[341314536,1730765445929,-590.0,0.00030136,2]
[341314537,1730765445938,-578.36,0.00030136,2]
[341314538,1730765445949,-590.0,0.00030136,2]
[341314539,1730765445958,-578.36,0.00030136,2]
[341314540,1730765445968,-590.0,0.00030136,2]
[341314541,1730765445977,-578.36,0.00030136,2]
[341314542,1730765445986,-590.0,0.00030136,2]
[341314543,1730765445996,-556.66705185,0.00030136,2]
[341314544,1730765446006,-578.36,0.00030136,2]
[341314545,1730765446015,-590.0,0.00030136,2]
[341314546,1730765446024,-578.36,0.00030136,2]
[341314547,1730765446034,-578.36,0.00030136,2]
[341314548,1730765446043,-500.0,0.00030136,2]
[341314549,1730765446052,-578.36,0.00030136,2]
[341314550,1730765446062,-590.0,0.00030136,2]
[341314551,1730765446072,-578.36,0.00030136,2]
[341314552,1730765446082,-590.0,0.00030136,2]
[341314553,1730765446092,-578.36,0.00030136,2]
[341314554,1730765446102,-590.0,0.00030136,2]
[341314555,1730765446112,-578.36,0.00030136,2]
[341314556,1730765446122,-578.36,0.00030136,2]
[341314557,1730765446133,-590.0,0.00030136,2]
[341314558,1730765446143,-500.0,0.00030136,2]
[341314559,1730765446152,-590.0,0.00030136,2]
[341314560,1730765446162,-500.0,0.00030136,2]
[341314561,1730765446172,-590.0,0.00030136,2]
[341314562,1730765446181,-590.0,0.00030136,2]
[341314563,1730765446193,-578.36,0.00030136,2]
[341314564,1730765446202,-590.0,0.00030136,2]
[341314565,1730765446211,-578.36,0.00030136,2]
[341314566,1730765446220,-590.0,0.00030136,2]
[341314567,1730765446229,-578.36,0.00030136,2]
[341314569,1730765446239,-590.0,0.00030136,2]
[341314571,1730765446248,-578.36,0.00030136,2]
[341314572,1730765446258,-590.0,0.00030136,2]
[341314573,1730765446267,-578.36,0.00030136,2]
[341314574,1730765446277,-590.0,0.00030136,2]
[341314575,1730765446288,-578.36,0.00030136,2]
[341314576,1730765446297,-590.0,0.00030136,2]
[341314577,1730765446307,-578.36,0.00030136,2]
[341314578,1730765446316,-590.06275406,0.00030136,2]
[341314579,1730765446326,-578.36,0.00030136,2]
[341314580,1730765446335,-578.36,0.00030136,2]
[341314581,1730765446344,-578.41506119,0.00030136,2]
[341314582,1730765446354,-500.0,0.00030136,2]
[341314583,1730765446364,-500.0,0.00030136,2]
[341314584,1730765446374,-500.0,0.00030136,2]
[341314585,1730765446384,-500.0,0.00030136,2]
[341314586,1730765446394,-500.0,0.00030136,2]
[341314587,1730765446410,-500.0,0.00030136,2]
[341314588,1730765446419,-500.0,0.00030136,2]
[341314589,1730765446430,-500.0,0.00030136,2]
[341314590,1730765446448,-271.7340519,0.00030136,2]
[341314591,1730765446476,-228.2659481,0.00030136,2]
[341314592,1730765446486,-500.0,0.00030136,2]
[341314593,1730765446495,-500.0,0.00030136,2]
[341314594,1730765446505,-500.0,0.00030136,2]
[341314595,1730765446515,-286.91303931,0.00030136,2]
[341314596,1730765446533,-213.08696069,0.00030136,2]
[341314597,1730765446543,-500.0,0.00030136,2]
[341314598,1730765446553,-500.0,0.00030136,2]
[341314599,1730765446563,-62.67788808,0.00030136,2]
[341314600,1730765446575,-437.32211192,0.00030136,2]
[341314601,1730765446584,-500.0,0.00030136,2]
[341314602,1730765446594,-500.0,0.00030136,2]
[341314603,1730765446603,-500.0,0.00030136,2]
[341314604,1730765446612,-500.0,0.00030136,2]
[341314605,1730765446621,-500.0,0.00030136,2]
[341314606,1730765446630,-500.0,0.00030136,2]
[341314607,1730765446639,-500.0,0.00030136,2]
[341314608,1730765446648,-172.89054179,0.00030136,2]
[341314609,1730765446657,-500.0,0.00030136,2]
[341314610,1730765446666,-500.0,0.00030136,2]
[341314611,1730765446674,-500.0,0.00030136,2]
[341314612,1730765446683,-500.0,0.00030136,2]
[341314613,1730765446693,-500.0,0.00030136,2]
[341314614,1730765446702,-500.0,0.00030136,2]
[341314615,1730765446711,-500.0,0.00030136,2]
[341314616,1730765446719,-500.0,0.00030136,2]
[341314617,1730765446728,-500.0,0.00030136,2]
[341314618,1730765446738,-164.21,0.00030136,2]
[341314619,1730765446748,-500.0,0.00030136,2]
[341314620,1730765446759,-300.0,0.00030136,2]
[341314621,1730765446771,-500.0,0.00030136,2]
[341314622,1730765446780,-500.0,0.00030136,2]
[341314623,1730765446789,-500.0,0.00030136,2]
[341314624,1730765446799,-500.0,0.00030136,2]
[341314625,1730765446808,-500.0,0.00030136,2]
[341314626,1730765446817,-8.46519119,0.00030136,2]
[341314627,1730765446849,-491.53480881,0.00030136,2]
[341314628,1730765446858,-500.0,0.00030136,2]
[341314629,1730765446868,-438.55972794,0.00030136,2]
[341314630,1730765446878,-500.0,0.00030136,2]
[341314631,1730765447028,-500.0,0.00030136,2]
[341314632,1730765447065,-500.0,0.00030136,2]
[341314633,1730765447075,-500.0,0.00030136,2]
[341314634,1730765447086,-500.0,0.00030136,2]
[341314635,1730765447096,-500.0,0.00030136,2]
[341314636,1730765447106,-250.67276943,0.00030136,2]
[341314637,1730765447130,-249.32723057,0.00030136,2]
[341314638,1730765447142,-332.70872955,0.00030136,2]
[341314639,1730765447151,-234.19312524,0.00030136,2]
[341314640,1730765447163,-500.0,0.00030136,2]
[341314641,1730765447173,-416.90192134,0.00030136,2]
[341314642,1730765447182,-500.0,0.00030136,2]
[341314643,1730765447195,-500.0,0.00030136,2]
[341314644,1730765447204,-500.0,0.00030136,2]
[341314645,1730765447213,-500.0,0.00030136,2]
[341314646,1730765447222,-500.0,0.00030136,2]
[341314647,1730765447232,-500.0,0.00030136,2]
[341314648,1730765447243,-500.0,0.00030136,2]
[341314649,1730765447252,-500.0,0.00030136,2]
[341314650,1730765447262,-500.0,0.00030136,2]
[341314651,1730765447273,-500.0,0.00030136,2]
[341314652,1730765447283,-500.0,0.00030136,2]
[341314653,1730765447293,-500.0,0.00030136,2]
[341314654,1730765447302,-500.0,0.00030136,2]
[341314655,1730765447313,-500.0,0.00030136,2]
[341314656,1730765447323,-500.0,0.00030136,2]
[341314657,1730765447333,-500.0,0.00030136,2]
[341314658,1730765447343,-500.0,0.00030136,2]
[341314659,1730765447356,-4560.11677965,0.00030136,2]
[341314660,1730765447367,-500.0,0.00030136,2]
[341314661,1730765447376,-509.74,0.00030136,2]
[341314662,1730765447387,-500.0,0.00030136,2]
[341314663,1730765447398,-500.0,0.00030136,2]
[341314664,1730765447408,-500.0,0.00030136,2]
[341314665,1730765447418,-342.7,0.00030136,2]
[341314666,1730765447429,-500.0,0.00030136,2]
[341314667,1730765447440,-500.0,0.00030136,2]
[341314668,1730765447451,-500.0,0.00030136,2]
[341314669,1730765447461,-472.07394609,0.00030136,2]
[341314670,1730765447471,-500.0,0.00030136,2]
[341314671,1730765447481,-500.0,0.00030136,2]
[341314672,1730765447491,-500.0,0.00030136,2]
[341314673,1730765447502,-500.0,0.00030136,2]
[341314674,1730765447511,-500.0,0.00030136,2]
[341314675,1730765447521,-500.0,0.00030136,2]
[341314676,1730765447531,-500.0,0.00030136,2]
[341314677,1730765447540,-299.66,0.00030136,2]
[341314678,1730765447550,-500.0,0.00030136,2]
[341314679,1730765447560,-500.0,0.00030136,2]
[341314680,1730765447570,-370.66,0.00030136,2]
[341314681,1730765447582,-500.0,0.00030136,2]
[341314682,1730765447592,-500.0,0.00030136,2]
[341314683,1730765447602,-641.56721798,0.00030136,2]
[341314684,1730765447612,-500.0,0.00030136,2]
[341314685,1730765447621,-500.0,0.00030136,2]
[341314686,1730765447631,-306.31,0.00030136,2]
[341314687,1730765447641,-500.0,0.00030136,2]
[341314688,1730765447652,-500.0,0.00030136,2]
[341314689,1730765447662,-500.0,0.00030136,2]
[341314690,1730765447671,-503.89443267,0.00030136,2]
[341314691,1730765447680,-500.0,0.00030136,2]
[341314692,1730765447690,-500.0,0.00030136,2]
[341314693,1730765447700,-260.38247685,0.00030136,2]
[341314694,1730765447710,-530.14,0.00030136,2]
[341314695,1730765447719,-500.0,0.00030136,2]
[341314696,1730765447730,-457.95683072,0.00030136,2]
[341314697,1730765447758,-72.18316928,0.00030136,2]
[341314698,1730765447767,-500.0,0.00030136,2]
[341314699,1730765447777,-381.15706596,0.00030136,2]
[341314740,1730766631915,-156.02,0.00015342,2]
[341314741,1730766631924,-211.94,0.00015342,2]
[341314742,1730766631933,-394.0,0.0002,2]
[341314743,1730766631942,-211.94,0.00021745,2]
[341314744,1730766631951,-405.52,0.00026791,2]
[341314745,1730766631962,-163.62,0.00027778,2]
[341314746,1730766631971,-1000.0,0.00028,2]
[341314747,1730766631980,-211.94,0.00028147,2]
[341314748,1730766631989,-250.0,0.00028334,2]
[341314749,1730766631998,-413.2400052,0.00028441,2]
[341314750,1730766632015,-225.7799948,0.00028441,2]
[341314751,1730766632025,-4702.00314273,0.00028458,2]
[341314752,1730766632039,-1276.18191748,0.00028458,2]
[341314753,1730766632051,-1088.0,0.00028458,2]
[341314754,1730766632063,-664.57727663,0.00028458,2]
[341314755,1730766632085,-6914.33964083,0.00028458,2]
[341314756,1730766632097,-3400.0,0.00028458,2]
[341314757,1730766632197,-341.87644136,0.00028458,2]
[341314758,1730766632209,-1202.07527114,0.00028458,2]
[341314759,1730766632220,-700.0,0.00028458,2]
[341314789,1730766638039,-3610.94630983,0.00028458,2]
[341314790,1730766638050,-1000.0,0.00028523,2]
[341314791,1730766638060,-1962.59,0.0002856,2]
[341314792,1730766638070,-2104.7,0.00028563,2]
[341314793,1730766638079,-3106.01,0.00028563,2]
[341314794,1730766638088,-173.67,0.00028568,2]
[341314795,1730766638098,-150.0,0.0002858,7]
[341314796,1730766638106,-524.65,0.00028631,2]
[341314797,1730766638115,-537.0249,0.00028679,2]
[341314798,1730766638125,-300.0,0.00028778,2]
[341314799,1730766638134,-1794.0,0.00028779,2]
[341314800,1730766638144,-2906.0,0.00028779,2]
[341314801,1730766638155,-1256.0,0.00028779,2]
[341314802,1730766638165,-630.0,0.00028779,2]
[341314803,1730766638176,-5279.3,0.00028779,2]
[341314804,1730766638185,-1156.0,0.00028779,2]
[341314805,1730766638194,-13601.0,0.00028779,2]
[341314806,1730766638203,-1246.0,0.00028779,2]
[341314807,1730766638213,-478.0,0.000288,2]
[341314808,1730766638222,-204.18,0.00028806,30]
[341314809,1730766638232,-427.12,0.00028841,2]
[341314810,1730766638241,-761.0,0.00028841,2]
[341314811,1730766638250,-168.66,0.00028938,2]
[341314812,1730766638259,-229.0,0.000292,2]
[341314813,1730766638268,-761.0,0.00029241,2]
[341314814,1730766638277,-427.12,0.00029241,2]
[341314815,1730766638286,-761.0,0.00029241,2]
[341314816,1730766638295,-427.12,0.00029241,2]
[341314817,1730766638303,-427.12,0.00029241,2]
[341314818,1730766638312,-761.0,0.00029241,2]
[341314820,1730766638321,-163.62,0.0002934,2]
[341314821,1730766638330,-1000.0,0.000294,2]
[341314822,1730766638339,-1000.0,0.000294,2]
[341314823,1730766638347,-150.0,0.00029589,2]
[341314824,1730766638356,-2010.0,0.00029863,2]
[341314825,1730766638366,-414.1006807,0.00029878,2]
[341314826,1730766638375,-928.422,0.0002992,24]
[341314827,1730766638383,-451.0107,0.00030036,2]
[341314828,1730766638392,-4337.2445,0.00030036,2]
[341314829,1730766638401,-1815.9709,0.00030036,2]
[341314830,1730766638411,-1711.135,0.00030036,2]
[341314831,1730766638419,-6365.38134634,0.00030036,2]
[341314833,1730766638590,-158.36504613,0.00030036,2]
[341314834,1730766638610,-608.35632613,0.00030036,2]
[341314835,1730766638621,-1242.20901746,0.00030036,2]
[341314837,1730766639935,-842.96006394,0.00030036,2]
[341314838,1730766639947,-78.7764788,0.00030036,2]
[341314839,1730766639960,-715.47003212,0.00030036,2]
[341314840,1730766639971,-874.44721234,0.00030036,2]
[341314841,1730766639980,-25.55278766,0.00030036,2]
[341314842,1730766639992,-283.34725872,0.00030036,2]
[341314843,1730766640001,-398.0,0.000301,14]
[341314844,1730766640010,-196.0,0.000301,14]
[341314845,1730766640019,-132.77274126,0.00030135,10]
[341314846,1730766640096,-167.22725874,0.00030135,10]
[341314847,1730766640106,-500.0,0.00030135,2]
[341314848,1730766640115,-500.0,0.00030135,2]
[341314849,1730766640124,-165.66171912,0.00030135,2]
[341314850,1730766640133,-256.90830714,0.00030136,5]
[341314851,1730766640209,-236.09169286,0.00030136,5]
[341314852,1730766640219,-223.62213773,0.00030136,2]
[341314853,1730766640228,-245.06616941,0.00030136,2]
[341314854,1730766640240,-616.525332,0.00030136,2]
[341314855,1730766640251,-467.89291831,0.00030136,2]
[341314856,1730766640262,-4122.72610968,0.00030136,2]
[341314857,1730766640273,-1893.55275912,0.00030136,2]
[341314858,1730766640284,-2792.38127951,0.00030136,2]
[341314859,1730766640294,-8090.00942718,0.00030136,2]
[341314860,1730766640305,-1749.95458987,0.00030136,2]
[341314869,1730766643563,-385.24,0.00027785,2]
[341314870,1730766643572,-1987.0,0.00028386,2]
[341314871,1730766643582,-385.24,0.00030049,2]
[341314872,1730766643591,-500.000001,0.000301,2]
[341314873,1730766643600,-586.61174394,0.00030135,2]
[341314874,1730766643609,-298.18055098,0.00030136,2]
[341314875,1730766643619,-461.784,0.00030136,120]
[341314876,1730766643628,-500.0,0.00030136,2]
[341314877,1730766643637,-500.0,0.00030136,2]
[341314878,1730766643646,-500.0,0.00030136,2]
[341314879,1730766643655,-500.0,0.00030136,2]
[341314880,1730766643665,-266.30267352,0.00030136,2]
[341314882,1730766643674,-1809.12,0.00030136,2]
[341314883,1730766643683,-1543.76535826,0.00030136,2]
[341314884,1730766643700,-265.35464174,0.00030136,2]
[341314885,1730766643710,-1809.12,0.00030136,2]
[341314886,1730766643720,-1809.12,0.00030136,2]
[341314887,1730766643730,-500.0,0.00030136,2]
[341314888,1730766643742,-1809.12,0.00030136,2]
[341314889,1730766643751,-1809.12,0.00030136,2]
[341314890,1730766643762,-1809.12,0.00030136,2]
[341314891,1730766643771,-1809.12,0.00030136,2]
[341314892,1730766643782,-1809.12,0.00030136,2]
[341314893,1730766643791,-1809.12,0.00030136,2]
[341314894,1730766643801,-1809.12,0.00030136,2]
[341314895,1730766643811,-1809.12,0.00030136,2]
[341314896,1730766643821,-1809.12,0.00030136,2]
[341314897,1730766643832,-1809.12,0.00030136,2]
[341314898,1730766643841,-1809.12,0.00030136,2]
[341314899,1730766643851,-1809.12,0.00030136,2]
[341314900,1730766643860,-1809.12,0.00030136,2]
[341314901,1730766643874,-1809.12,0.00030136,2]
[341314902,1730766643884,-1809.12,0.00030136,2]
[341314903,1730766643894,-1809.12,0.00030136,2]
[341314904,1730766643904,-1809.12,0.00030136,2]
[341314905,1730766643915,-1809.12,0.00030136,2]
[341314906,1730766643924,-1809.12,0.00030136,2]
[341314907,1730766643935,-1809.14851284,0.00030136,2]
[341314908,1730766643953,-500.0,0.00030136,2]
[341314909,1730766643965,-500.0,0.00030136,2]
[341314910,1730766643975,-282.6538641,0.00030136,2]
[341314911,1730766643984,-500.0,0.00030136,2]
[341314912,1730766643993,-500.0,0.00030136,2]
[341314913,1730766644003,-500.0,0.00030136,2]
[341314914,1730766644013,-500.0,0.00030136,2]
[341314915,1730766644023,-500.0,0.00030136,2]
[341314916,1730766644036,-500.0,0.00030136,2]
[341314917,1730766644046,-349.99100991,0.00030136,2]
[341314918,1730766644056,-500.0,0.00030136,2]
[341314919,1730766644068,-3101.46,0.00030136,2]
[341314920,1730766644078,-3101.46,0.00030136,2]
[341314921,1730766644088,-679.03828113,0.00030136,2]
[341314922,1730766644109,-2422.42171887,0.00030136,2]
[341314923,1730766644120,-3101.46,0.00030136,2]
[341314924,1730766644132,-3101.46,0.00030136,2]
[341314925,1730766644142,-500.0,0.00030136,2]
[341314926,1730766644152,-500.0,0.00030136,2]
[341314927,1730766644161,-3101.46,0.00030136,2]
[341314928,1730766644171,-533.81546455,0.00030136,2]
[341314929,1730766644180,-3101.46,0.00030136,2]
[341314930,1730766644190,-3101.46,0.00030136,2]
[341314931,1730766644200,-3101.46,0.00030136,2]
[341314932,1730766644210,-3101.46,0.00030136,2]
[341314933,1730766644220,-3101.46,0.00030136,2]
[341314934,1730766644229,-3101.46,0.00030136,2]